[Event "Prague Festival Masters 2024"]
[Site "Prague"]
[Date "2024.03.06"]
[Round "8.4"]
[White "Bartel, Mateusz"]
[Black "Praggnanandhaa R"]
[Result "1/2-1/2"]
[ECO "B53"]
[WhiteElo "2657"]
[BlackElo "2743"]
[Annotator "TA"]
[PlyCount "60"]
[EventDate "2024.02.22"]
[EventType "tourn"]
[EventCountry "CZE"]
[SourceTitle "playchess.com"]
[Source "ChessBase"]
[SourceQuality "1"]
[TimeControl "40/5400+30:1800+30"]

{[%evp 20,60,0,22,12,10,7,23,69,74,118,103,98,0,0,0,0,0,0,0,0,0,0,-30,-30,-30,-34,-37,-24,-25,-30,-31,0,0,0,0,0,0,0,0,0,0,0]} 1. e4 {[%emt 0:00:03]} c5 {[%emt 0:00:36]} 2. Nf3 {[%emt 0:00:05]} Nc6 {[%emt 0:00:07]} 3. Bb5 {[%emt 0:00:05]} Nf6 {[%emt 0:00:12]} 4. Nc3 {[%emt 0:00:39]} d6 {[%emt 0:00:10]} 5. d4 {[%emt 0:06:07]} cxd4 {[%emt 0:01:15]} 6. Qxd4 {[%emt 0:00:03]} Bd7 {[%emt 0:03:38]} 7. Bxc6 {[%emt 0:00:49]} Bxc6 {[%emt 0:00:06]} 8. Bg5 {[%emt 0:00:07]} e6 {[%emt 0:01:24]} 9. O-O-O {[%emt 0:00:08]} Be7 {[%emt 0:02:09]} 10. Rhe1 {[%emt 0:00:08]} Qa5 {[%emt 0:12:59]} 11. Nd5 {[%emt 0:17:50]} Bxd5 {[%emt 0:14:58]} (11... exd5 12. exd5 Nxd5 13. Bxe7 Nxe7 14. Rxe7+ Kxe7 15. Qxd6+ (15. Qxg7 $2 Bxf3 16. gxf3 Qe5 $19) 15... Ke8 16. Re1+ $16) 12. exd5 {[%emt 0:00:11]} Qxa2 {[%emt 0:00:38]} 13. Rd3 {[%emt 0:03:42]} O-O {[%emt 0:22:06][%cal Bh8f8,Bf8f7,Bf7e7][%mdl 32]} (13... Qxd5 $2 14. Bxf6 Qxd4 (14... gxf6 $2 15. Qxd5 exd5 16. Rde3 $18) 15. Bxd4 $18) (13... Nxd5 $2 14. Ra3 $18) (13... Qa1+ $11 {was preferrable.} 14. Kd2 Qa5+ 15. Kd1 (15. b4 Qb5 $11) 15... h6 (15... Nxd5 16. Qxg7 Rf8 17. Bxe7 $18) (15... Qxd5 $2 16. Bxf6 Qxd4 17. Bxd4 $18) 16. dxe6 O-O (16... hxg5 $2 17. exf7+ Kxf7 18. Rxe7+ Kg8 19. Qxd6 $18) 17. exf7+ Rxf7) 14. dxe6 $14 {[%emt 0:02:38] White is more active.} d5 {[%emt 0:00:04]} ({Of course not} 14... fxe6 15. Ra3 Qd5 16. Qxd5 (16. Rxa7 $2 {perishes.} Qxd4 17. Nxd4 Rxa7 $19) 16... Nxd5 17. Bxe7 (17. Rxe6 Rxf3 18. Rxf3 Bxg5+ 19. Kb1 Rd8 $11) 17... Nxe7 18. Rxe6) 15. exf7+ {[%emt 0:02:54]} (15. c3 {feels hotter.} Rae8 16. exf7+ Kxf7 17. Ree3) 15... Rxf7 {[%emt 0:00:05] [#] Strongly threatening ...Ne4.} 16. Rxe7 {[%emt 0:00:18]} Rxe7 $11 {[%emt 0:01:19]} (16... Qa1+ 17. Kd2) 17. Bxf6 {[%emt 0:00:07]} gxf6 {[%emt 0:00:21]} 18. Qxf6 {[%emt 0:00:26]} Rg7 {[%emt 0:11:24]} 19. Ng5 {[%emt 0:38:49] And now Ne6 would win.} Qa1+ {[%emt 0:14:00]} (19... Rf8 $5 20. Qe6+ $8 Kh8 $11) 20. Kd2 {[%emt 0:00:23][%cal Og5e6] Threatens to win with Ne6!} Qa5+ {[%emt 0:00:04]} (20... Rf8 $5 21. Qe6+ $8 Kh8 $11) 21. c3 {[%emt 0:02:31] Ne6 is the strong threat. Dancing on a razor blade.} Qb6 {[%emt 0:03:02]} 22. Qxb6 {[%emt 0:00:07]} axb6 {[%emt 0:00:03]} 23. Rxd5 {[%emt 0:00:06][%mdl 4096] Endgame. KRR-KRN} h6 {[%emt 0:00:26]} 24. Ne4 {[%emt 0:00:05]} Rxg2 {[%emt 0:00:03][%cal Og8f8]} 25. Rd7 {[%emt 0:01:17]} Rc8 {[%emt 0:05:48]} 26. Nf6+ {[%emt 0:15:39] The position is equal.} Kf8 {[%emt 0:00:03]} 27. Nh7+ {[%emt 0:00:13]} Kg8 {[%emt 0:00:04]} (27... Ke8 $5 28. Nf6+ $8 Kf8 29. Nh7+ Ke8 30. Nf6+ Kf8 $11) 28. Nf6+ {[%emt 0:00:04]} Kf8 {[%emt 0:00:02]} 29. Nh7+ {[%emt 0:00:07]} Kg8 {[%emt 0:00:02]} (29... Ke8 $5 30. Nf6+ $8 Kf8 $11) 30. Nf6+ {[%emt 0:00:06]} Kf8 {[%emt 0:00:01] Weighted Error Value: White=0.14 (very precise) /Black=0.10 (very precise) .  Mistake:       	White=1     	Black=1      Inaccurate:     	White=1     	Black=2      OK:         	White=6     	Black=6      Best:        	White=6     	Black=3} 1/2-1/2

[Event "Prague Festival Masters 2024"]
[Site "Prague"]
[Date "2024.03.06"]
[Round "8.5"]
[White "Abdusattorov, Nodirbek"]
[Black "Maghsoodloo, Parham"]
[Result "1-0"]
[ECO "B90"]
[WhiteElo "2727"]
[BlackElo "2740"]
[Annotator "TA"]
[PlyCount "135"]
[EventDate "2024.02.22"]
[EventType "tourn"]
[EventCountry "CZE"]
[SourceTitle "playchess.com"]
[Source "ChessBase"]
[SourceQuality "1"]
[TimeControl "40/5400+30:1800+30"]

{[%evp 12,135,33,0,21,3,7,-12,12,0,20,0,0,0,0,0,12,0,0,0,-11,-31,-29,-38,-24,-22,-23,-45,-10,-19,0,0,41,-25,-14,-50,-42,-62,-56,-61,-25,-25,0,-32,-29,-39,0,0,0,0,68,70,87,65,70,57,66,0,0,0,0,0,0,0,0,0,0,0,0,0,0,0,0,-24,0,0,0,0,0,-147,-152,-197,-8,-10,-10,-17,-14,-455,0,0,0,0,0,0,0,0,0,0,0,0,0,0,0,0,0,0,265,89,0,0,0,0,889,848,835,831,752,815,4133,4125,4137,4137,4133,4125,29971,434]} 1. e4 {[%emt 0:00:02]} c5 {[%emt 0:00:28]} 2. Nf3 {[%emt 0:00:12]} d6 {[%emt 0:00:08]} 3. d4 {[%emt 0:00:18]} cxd4 {[%emt 0:00:08]} 4. Nxd4 {[%emt 0:00:08]} Nf6 {[%emt 0:00:05]} 5. Nc3 {[%emt 0:00:15]} a6 {[%emt 0:00:06]} 6. h3 {[%emt 0:00:38]} e5 {[%emt 0:00:07]} 7. Nb3 {[%emt 0:00:07]} Be7 {[%emt 0:00:04]} 8. Be3 {[%emt 0:02:09]} Be6 {[%emt 0:02:51]} 9. Qf3 {[%emt 0:09:57]} Nbd7 {[%emt 0:01:11][%cal Bb8d7,Bd7f8,Bf8g6,Bg6h4][%mdl 32] Die Stellung ist ausgeglichen.} 10. g4 {[%emt 0:01:28]} h6 {[%emt 0:00:32]} 11. O-O-O {[%emt 0:03:56]} Rc8 {[%emt 0:01:30][%cal Oc8c3]} 12. Nd5 {[%emt 0:04:21]} Nf8 {[%emt 0:00:17]} 13. Bd3 {[%emt 0:10:33]} Ng6 {[%emt 0:25:35] Und jetzt ...Bxd5 wäre schön.} 14. Rhe1 {[%emt 0:01:03]} Nd7 {[%emt 0:08:28]} 15. Kb1 {[%emt 0:01:02]} Bg5 {[%emt 0:04:03]} 16. c4 {[%emt 0:07:42]} O-O {[%emt 0:02:12]} 17. Bf1 {[%emt 0:03:55]} Nh4 {[%emt 0:07:27]} 18. Bxg5 {[%emt 0:14:04]} hxg5 {[%emt 0:00:18]} 19. Qd3 {[%emt 0:00:30]} Ng6 {[%emt 0:07:06]} 20. Ne3 {[%emt 0:05:56]} Rc6 {[%emt 0:00:08]} 21. Qd2 {[%emt 0:00:27]} b6 {[%emt 0:03:33] Es drohte Na5} 22. Nd5 {[%emt 0:01:16]} (22. Nf5 $14) 22... a5 $11 {[%emt 0:00:39]} 23. a4 {[%emt 0:01:26]} Nf4 {[%emt 0:02:56]} 24. Re3 {[%emt 0:01:28]} g6 {[%emt 0:05:44]} 25. Nc3 {[%emt 0:02:32]} Nf6 {[%emt 0:02:19][%cal Og8g7]} 26. f3 {[%emt 0:04:23]} Kh7 {[%emt 0:05:21]} 27. Nd5 {[%emt 0:01:21][%cal Oh3h4]} Kg7 {[%emt 0:00:42]} 28. h4 {[%emt 0:00:33]} Bxd5 {[%emt 0:06:27]} (28... gxh4 29. Nxf4 exf4 30. Ree1 $11 (30. Rc3 Nd7 $11)) 29. cxd5 {[%emt 0:00:06]} (29. exd5 Rc7 30. hxg5 Nd7 $15) 29... Rc8 {[%emt 0:00:06]} 30. hxg5 {[%emt 0:00:11]} Nh7 {[%emt 0:00:06]} ({Vorzuziehen ist} 30... Nd7 $1 $11) 31. Ba6 $14 {[%emt 0:00:47]} Rc7 {[%emt 0:00:21]} 32. Rc1 {[%emt 0:05:02]} Rxc1+ {[%emt 0:00:23]} 33. Qxc1 {[%emt 0:00:01]} Nxg5 {[%emt 0:00:05]} 34. Qc6 {[%emt 0:01:32]} ({Besser ist} 34. Ka2 $14) 34... Ng2 {[%emt 0:01:23] Hervorragende Reitkunst.} 35. Rc3 {[%emt 0:01:03]} Ne1 {[%emt 0:01:15]} 36. Nd2 {[%emt 0:02:59]} Rh8 {[%emt 0:00:11]} 37. Re3 {[%emt 0:07:24]} Rh2 {[%emt 0:03:26]} 38. Nf1 {[%emt 0:03:04]} Nc2 {[%emt 0:03:52] ...Rf2 ist eine echte Drohung.} (38... Nexf3 39. Nxh2 Nxh2 40. Be2) 39. Rc3 {[%emt 0:03:01]} Nb4 {[%emt 0:00:11][%csl LRa6,LRc6]} 40. Nxh2 {[%emt 0:00:06]} Nxc6 {[%emt 0:00:30]} 41. dxc6 {[%emt 0:30:38]} Ne6 {[%emt 0:30:07]} 42. Bc4 {[%emt 0:00:00] Droht Bxe6 und aus.} Nc7 {[%emt 0:00:00]} 43. Nf1 {[%emt 0:00:00]} Qe8 {[%emt 0:00:00]} 44. Bd5 {[%emt 0:00:00]} b5 {[%emt 0:00:00]} 45. Ne3 {[%emt 0:00:00]} (45. axb5 $11 {war der einzige Weg, das Gleichgewicht zu halten.} Nxb5 46. Rb3) 45... bxa4 $17 {[%emt 0:00:00]} 46. Rc2 {[%emt 0:00:00]} Qb8 $2 {[%emt 0:00:00]} (46... a3 $19 {Zielt auf ...Qa8 ab.} 47. Ka2 Kh6) 47. Bc4 $1 $11 {[%emt 0:00:00]} a3 {[%emt 0:00:00]} 48. Nd5 {[%emt 0:00:00]} Ne6 {[%emt 0:00:00]} 49. b3 {[%emt 0:00:00][%mdl 8192] [#]} (49. g5 $11) 49... Nd4 $2 {[%emt 0:00:00]} (49... Qa7 $1 $19 {[%cal Ra7g1]} 50. Nc3 Qb6) 50. c7 {[%emt 0:00:00]} Qh8 {[%emt 0:00:00]} 51. Rd2 $1 {[%emt 0:00:00]} Qh1+ {[%emt 0:03:25]} 52. Ka2 {[%emt 0:00:00] Aktives Gegenspiel!} Qc1 $1 {[%emt 0:00:04]} 53. Rh2 {[%emt 0:00:00]} (53. c8=R Qxd2+ 54. Kxa3 Qc1+ (54... Nxf3 $2 55. Ka4 $19) 55. Ka2 Nc2 (55... Nxf3 $2 56. Ne7 $19) (55... Nxf3 $2 56. Ne7 $19)) (53. Rf2 $5 a4 $8 54. g5 $11) 53... a4 {[%emt 0:01:48]} (53... Nxf3 $2 54. Rf2 (54. c8=Q Nxh2) 54... Nd2 55. Rxd2 (55. Rxf7+ Kh6) 55... Qxd2+ 56. Kxa3 $18) 54. g5 {[%emt 0:00:00]} Nxf3 {[%emt 0:02:03]} (54... axb3+ $2 55. Bxb3 Nxf3 56. Rc2 $18) 55. Rf2 {[%emt 0:00:00] Schach mit Chili.} (55. c8=R Nxh2 (55... axb3+ $2 56. Kxb3 Nxh2 57. Nc7 $19) (55... axb3+ $2 56. Kxb3 Nxh2 57. Nf6 $19)) 55... axb3+ {[%emt 0:03:13]} (55... Nxg5 $2 56. c8=Q (56. c8=B $2 Nxe4 57. Rg2 Nc5 $19) 56... axb3+ 57. Kxb3 Qb1+ 58. Kxa3 Qa1+ 59. Kb3 (59. Ba2 Qe1 $18) 59... Qb1+ 60. Ka4 Qd1+ 61. Kb5 Qb1+ 62. Nb4 $18) 56. Bxb3 {[%emt 0:00:00]} Nd2 {[%emt 0:00:05]} (56... Nxg5 57. Rc2 Qg1 58. c8=Q $18 (58. c8=N $2 Nxe4 59. Kxa3 f5 $19)) 57. Rxd2 {[%emt 0:00:00]} Qxd2+ {[%emt 0:00:05]} 58. Kxa3 {[%emt 0:00:00]} Qa5+ $2 {[%emt 0:00:48][%mdl 8192]} (58... Qxg5 $2 59. c8=Q $18 (59. c8=R $2 f5 $19)) (58... Qc1+ $11 {und Schwarz steht sicher.} 59. Ka2 Qc5 (59... Qxg5 $2 60. c8=Q $18)) 59. Ba4 $18 {[%emt 0:00:00]} Qa6 {[%emt 0:02:26]} (59... Qc5+ $2 60. Kb3 $18) 60. Kb4 {[%emt 0:00:13] Und Bd7 würde nun gewinnen.} Qb7+ {[%emt 0:01:17]} 61. Bb5 {[%emt 0:00:40]} Kh7 $2 {[%emt 0:02:13][%mdl 8192]} (61... f5 $11 62. gxf6+ Kf8) 62. Kc4 {[%emt 0:00:59] Droht stark Bd7.} Kg7 {[%emt 0:00:05]} 63. Bd7 {[%emt 0:00:30]} Qa6+ {[%emt 0:00:05]} 64. Kb3 {[%emt 0:01:31]} Qb7+ {[%emt 0:01:58]} 65. Kc2 {[%emt 0:00:24]} Qa6 {[%emt 0:00:33]} 66. c8=Q {[%emt 0:00:40]} (66. c8=R Qa2+ (66... Qe2+ 67. Kb3 $11) 67. Kc3 Qa3+ 68. Kc4 Qc1+ 69. Kb5 Qxg5 $17) 66... Qe2+ {[%emt 0:00:05]} 67. Kb3 {[%emt 0:00:07] Weiss droht Nc3 und Matt.} Qxe4 {[%emt 0:00:15] [#]} 68. Qg8+ {[%emt 0:00:34] Weiß hat das Spiel gedreht.   Gewichteter Fehlerwert: Weiß=0.25 (präzise) /Schwarz=0.29 (präzise) .  Verlustzug:     	Weiß=1     	Schwarz=2     Gewinn verpasst:   	---       	Schwarz=2     Fehler:       	Weiß=3     	Schwarz=1     Ungenau:       	Weiß=2     	Schwarz=4     OK:         	Weiß=23    	Schwarz=25    Bester:       	Weiß=5     	Schwarz=6     Stark:        	Weiß=2     	Schwarz=1} 1-0

[Event "Prague Festival Masters 2024"]
[Site "Prague"]
[Date "2024.03.07"]
[Round "9.1"]
[White "Keymer, Vincent"]
[Black "Bartel, Mateusz"]
[Result "1/2-1/2"]
[ECO "D35"]
[WhiteElo "2743"]
[BlackElo "2657"]
[Annotator "TA"]
[PlyCount "82"]
[EventDate "2024.02.22"]
[EventType "tourn"]
[EventCountry "CZE"]
[SourceTitle "playchess.com"]
[Source "ChessBase"]
[SourceQuality "1"]
[TimeControl "40/5400+30:1800+30"]

{[%evp 13,82,10,12,16,27,18,35,-55,-47,-54,-22,-29,-35,-31,-41,-84,-70,-70,-81,-99,-98,-106,-49,-118,-122,-122,-114,-113,-114,-143,-128,-133,-131,-144,-146,-139,-141,-144,-101,-94,-23,-20,-18,-11,-18,-22,-21,-12,-19,-15,-9,-75,-10,-24,-8,-7,-5,-6,0,0,0,0,0,0,0,0,0,0,0,0,0]} 1. d4 {[%emt 0:00:05]} d5 {[%emt 0:01:51]} 2. c4 {[%emt 0:00:15]} e6 {[%emt 0:00:12]} 3. Nf3 {[%emt 0:00:05]} Nf6 {[%emt 0:00:12]} 4. Nc3 {[%emt 0:00:04]} Be7 {[%emt 0:00:04]} 5. cxd5 {[%emt 0:00:04]} exd5 {[%emt 0:00:06]} 6. h3 {[%emt 0:00:04] D35: Queen's Gambit Declined: Exchange Variation.} Bf5 $146 {[%emt 0:00:16]} ({Predecessor:} 6... c6 7. Bf4 Bd6 8. e3 Bf5 9. Ne5 Ne4 10. Qb3 Qb6 11. g4 Be6 12. Nxe4 dxe4 13. Nc4 Qb4+ 14. Qxb4 Bxb4+ {0-1 Shankland,S (2709)-Nakamura,H (2736) Saint Louis Blitz 2021 (4)}) 7. g4 {[%emt 0:01:09]} Be6 {[%emt 0:00:35]} 8. Ng5 {[%emt 0:03:09]} Bc8 {[%emt 0:13:47]} 9. Bf4 {[%emt 0:33:50]} h5 {[%emt 0:04:39]} 10. Rg1 {[%emt 0:11:47]} (10. Qd2 $14) 10... hxg4 $15 {[%emt 0:04:49]} 11. hxg4 {[%emt 0:00:11]} Nxg4 {[%emt 0:00:12]} (11... Bxg4 12. f3 Bh5 13. Qb3 $11) 12. Qd2 {[%emt 0:01:03]} f6 {[%emt 0:10:48]} 13. Nf3 {[%emt 0:01:33]} Bf5 {[%emt 0:02:00]} 14. e3 {[%emt 0:01:31]} Qd7 $1 {[%emt 0:04:16]} 15. Bd3 {[%emt 0:02:48]} Na6 {[%emt 0:06:00]} 16. Qe2 {[%emt 0:14:31]} g5 $1 {[%emt 0:11:08]} 17. Bg3 {[%emt 0:05:46]} Nh6 {[%emt 0:02:07]} (17... Bxd3 $17 18. Qxd3 O-O-O) 18. O-O-O {[%emt 0:07:22]} (18. Bxa6 $15 bxa6 19. Nd2) 18... Bxd3 $17 {[%emt 0:02:57]} 19. Qxd3 {[%emt 0:00:03]} Nf5 {[%emt 0:00:07]} 20. a3 {[%emt 0:01:03]} O-O-O {[%emt 0:01:21]} 21. Ne2 {[%emt 0:00:09]} Bd6 {[%emt 0:01:15]} 22. Nd2 {[%emt 0:02:53]} c6 {[%emt 0:01:13]} 23. Nb3 {[%emt 0:01:00]} Rh3 {[%emt 0:01:33]} 24. Kb1 {[%emt 0:02:50]} Re8 {[%emt 0:04:17]} 25. Ka2 {[%emt 0:00:59]} Qh7 {[%emt 0:03:11]} 26. Rh1 {[%emt 0:03:07] [#]} Rxh1 {[%emt 0:06:53]} (26... Nxg3 27. Qxh7 Rxh7 28. Rxh7 Nxe2 29. Rhh1) (26... Bc7 $1 $17 27. Rxh3 Qxh3) 27. Rxh1 $11 {[%emt 0:00:01]} Qd7 {[%emt 0:00:07]} (27... Qxh1 $2 {is the wrong capture.} 28. Qxf5+ Kc7 29. Qxf6 (29. Bxd6+ Kxd6 30. Qxf6+ Kd7 $11) 29... Bxg3 30. Qf7+ Kd8 31. Nxg3 $18) 28. Bxd6 $1 {[%emt 0:01:17]} Nxd6 {[%emt 0:00:03]} 29. Rh7 {[%emt 0:02:13]} Qf5 {[%emt 0:04:23]} 30. Qxf5+ {[%emt 0:00:04]} Nxf5 {[%emt 0:00:06]} 31. Rf7 {[%emt 0:00:05]} Re6 {[%emt 0:00:04]} 32. Nc5 {[%emt 0:03:20] [#]} (32. Rf8+ $11 {keeps the balance.} Kc7 33. Rf7+ Kc8 34. Nc5) 32... Nxc5 {[%emt 0:03:38]} ({Better is} 32... Nd6 $1 $17 {aiming for ...Nxc5.} 33. Rf8+ Re8 34. Rxf6 Nxc5 35. dxc5 Ne4) 33. dxc5 $11 {[%emt 0:00:02]} b6 {[%emt 0:00:09]} 34. b4 {[%emt 0:01:24]} bxc5 {[%emt 0:00:34]} 35. bxc5 {[%emt 0:00:01]} d4 {[%emt 0:01:15]} 36. Nxd4 {[%emt 0:00:05]} Nxd4 {[%emt 0:00:05]} 37. exd4 {[%emt 0:00:01]} Re2+ {[%emt 0:00:08]} 38. Kb3 {[%emt 0:00:02]} Rxf2 {[%emt 0:00:05]} 39. Rxa7 {[%emt 0:01:06]} g4 {[%emt 0:01:15]} 40. Rg7 {[%emt 0:00:48]} f5 {[%emt 0:00:07]} 41. Kb4 {[%emt 0:09:20]} Rb2+ {[%emt 0:11:33]} 1/2-1/2

[Event "Prague Festival Masters 2024"]
[Site "Prague"]
[Date "2024.03.07"]
[Round "9.2"]
[White "Maghsoodloo, Parham"]
[Black "Gukesh D"]
[Result "1/2-1/2"]
[ECO "E11"]
[WhiteElo "2740"]
[BlackElo "2725"]
[Annotator "TA"]
[PlyCount "125"]
[EventDate "2024.02.22"]
[EventType "tourn"]
[EventCountry "CZE"]
[SourceTitle "playchess.com"]
[Source "ChessBase"]
[SourceQuality "1"]
[TimeControl "40/5400+30:1800+30"]

{[%evp 58,125,87,88,123,75,78,0,124,109,121,120,124,119,145,115,118,112,202,204,422,418,421,410,452,0,0,0,61,70,71,79,79,33,33,0,0,0,0,0,0,0,54,54,54,9,9,9,61,0,0,0,61,61,57,0,0,0,0,0,0,0,0,0,0,0,0,0,0,0]} 1. d4 {[%emt 0:00:28]} Nf6 {[%emt 0:00:12]} 2. c4 {[%emt 0:00:04]} e6 {[%emt 0:00:06]} 3. Nf3 {[%emt 0:00:04]} d5 {[%emt 0:00:06]} 4. g3 {[%emt 0:00:04]} Bb4+ {[%emt 0:00:53]} 5. Bd2 {[%emt 0:00:09]} Be7 {[%emt 0:00:54]} 6. Bg2 {[%emt 0:00:07]} O-O {[%emt 0:00:06]} 7. O-O {[%emt 0:00:06]} c6 {[%emt 0:00:03]} 8. b3 {[%emt 0:00:04]} b6 {[%emt 0:00:51]} 9. Bc1 {[%emt 0:00:33]} Nbd7 {[%emt 0:04:11]} 10. Bb2 {[%emt 0:01:26]} a5 {[%emt 0:06:02]} 11. Qc2 {[%emt 0:00:06]} Ba6 {[%emt 0:05:44]} 12. Nbd2 {[%emt 0:02:29]} c5 {[%emt 0:02:34]} 13. Rac1 {[%emt 0:06:02]} Rc8 {[%emt 0:01:51]} 14. Qb1 {[%emt 0:02:07]} dxc4 {[%emt 0:10:05]} 15. Nxc4 {[%emt 0:08:23]} b5 {[%emt 0:10:19]} 16. Nce5 {[%emt 0:04:28]} Nxe5 {[%emt 0:01:30]} 17. Nxe5 {[%emt 0:06:56]} Qb6 {[%emt 0:01:01]} 18. Rc2 {[%emt 0:09:06]} Rc7 {[%emt 0:11:59]} 19. dxc5 {[%emt 0:12:20]} Bxc5 {[%emt 0:00:06]} 20. Nd3 {[%emt 0:00:04]} Bd6 {[%emt 0:01:12]} 21. Rxc7 {[%emt 0:00:19]} Qxc7 {[%emt 0:00:33]} 22. Rc1 {[%emt 0:01:02]} Qe7 {[%emt 0:00:59]} 23. Ne5 {[%emt 0:04:33]} Bb7 {[%emt 0:07:57]} 24. Bxb7 {[%emt 0:04:51]} Bxe5 {[%emt 0:01:40]} 25. Bc6 {[%emt 0:17:37]} Bxb2 {[%emt 0:00:07]} 26. Qxb2 {[%emt 0:00:04]} b4 {[%emt 0:00:13]} 27. Qe5 {[%emt 0:00:04]} Qd8 {[%emt 0:02:50]} 28. Rc4 {[%emt 0:03:42]} h6 {[%emt 0:07:46]} 29. Kg2 {[%emt 0:07:06]} Qb6 {[%emt 0:08:18]} 30. Bf3 $1 {[%emt 0:00:31]} Qd8 {[%emt 0:06:48]} 31. Rd4 {[%emt 0:06:58]} (31. Rc7 $142) 31... Qb6 $16 {[%emt 0:00:29]} 32. Rc4 {[%emt 0:00:24]} (32. Rd6 $142 $1 {[%cal Rd6b6]} Qb8 33. Qd4) 32... Qd8 $1 $16 {[%emt 0:00:18]} 33. Rc6 {[%emt 0:00:56]} Re8 {[%emt 0:01:04]} 34. Ra6 {[%emt 0:00:24]} Nd5 {[%emt 0:00:38]} 35. e3 {[%emt 0:00:55]} Re7 {[%emt 0:02:36]} 36. Qd4 {[%emt 0:00:18]} Rd7 {[%emt 0:01:48]} 37. Qc5 {[%emt 0:00:07]} Rc7 {[%emt 0:02:34]} (37... g5 $16) 38. Qxa5 $18 {[%emt 0:02:01]} Nxe3+ $2 {[%emt 0:00:06]} (38... Kh7 {was worth a try.}) 39. fxe3 $18 {[%emt 0:01:38]} Rc2+ {[%emt 0:00:02]} 40. Kh3 {[%emt 0:00:04]} Qd3 {[%emt 0:00:06] [#]} 41. Ra7 $2 {[%emt 0:23:28]} (41. Ra8+ $1 $18 Kh7 42. Rh8+ (42. Qxb4 Qf1+ 43. Kg4 f5+ 44. Kf4 e5+ 45. Kxe5 Qxf3 $19) 42... Kxh8 43. Qa8+ (43. Qxb4 $2 Qf1+ 44. Kg4 f5+ 45. Kf4 Rf2 $19) 43... Rc8 44. Qxc8+ Kh7 45. Qc7 Qf1+ 46. Bg2 Qf5+ 47. g4) 41... Qf1+ $11 {[%emt 0:12:19]} (41... Qxe3 $2 42. Qd8+ Kh7 43. Rxf7 $18) 42. Kg4 {[%emt 0:00:07]} Rf2 {[%emt 0:06:28]} ({Black should play} 42... Qd3 $11 43. Qe5 (43. Qxb4 $2 Qf5+ 44. Kh4 Rxh2#) 43... Rf2) 43. Qd8+ $14 {[%emt 0:01:27]} Kh7 {[%emt 0:00:07]} 44. Rxf7 {[%emt 0:00:29]} h5+ {[%emt 0:00:09] [#]} (44... Kg6 45. Rf6+ Kh7 46. Be4+ (46. Rxe6 Rxf3 47. Qd5 Rf8 $16) (46. Rxe6 Rxf3 47. Qd5 Rf8 $14)) 45. Kxh5 {[%emt 0:04:58]} ({White should try} 45. Kh4 $1 $16 {White threatens Be4+ and mate.} Rxf3 46. Rxf3 Qxf3 47. Qg5) 45... Rxf3 $14 {[%emt 0:00:20]} 46. Rf4 {[%emt 0:03:06]} (46. Rxf3 {simplifies} Qxf3+ 47. Kh4 Qxe3 48. Qg5) 46... e5 $1 {[%emt 0:07:48]} 47. Rxf3 {[%emt 0:01:11]} (47. Rxb4 $2 {gets mated.} Qh3+ (47... Rxe3 48. Kg5 $16) 48. Rh4 Qf5+ 49. Qg5 g6#) (47. Rh4 Rxg3 48. Rg4 Qf5+ (48... Rxe3 49. Rxg7+ Kxg7 50. Qg5+ Kf8 51. Qh6+ Ke8 52. Qxe3 $11) (48... g6+ $2 49. Kh4 Rh3+ 50. Kg5 Rh5#) 49. Qg5 Rh3+ 50. Rh4 g6#) 47... Qxf3+ {[%emt 0:00:01]} 48. Kg5 {[%emt 0:00:05]} Qxe3+ {[%emt 0:06:54]} 49. Kf5 {[%emt 0:00:04]} Qf3+ {[%emt 0:00:54]} (49... Qf2+ $1 $11 50. Kxe5 Qe3+ 51. Kd6 Qd2+ 52. Kc7 Qxh2) 50. Kxe5 $14 {[%emt 0:00:28]} Qe2+ {[%emt 0:00:09]} 51. Kf5 {[%emt 0:01:38]} Qf2+ $1 {[%emt 0:02:15]} 52. Ke6 {[%emt 0:00:00]} Qe2+ {[%emt 0:00:11]} (52... Qxh2 $11 53. Qd3+ (53. Qh4+ Qxh4 54. gxh4 Kg6 $11) 53... Kh8) 53. Kf5 {[%emt 0:00:35]} (53. Kd7 $14) 53... Qf2+ $11 {[%emt 0:00:29]} 54. Ke6 {[%emt 0:00:02]} (54. Ke4 $11) 54... Qe2+ $14 {[%emt 0:00:04]} 55. Kd7 {[%emt 0:00:56]} Qxh2 {[%emt 0:01:29]} 56. Qh4+ {[%emt 0:00:31]} (56. Qb8 $14) 56... Qxh4 $11 {[%emt 0:00:04]} 57. gxh4 {[%emt 0:00:02]} Kg6 {[%emt 0:00:09]} 58. Ke6 {[%emt 0:00:03]} (58. Kc6 $5 Kh5 $8 59. Kb5 Kxh4 60. Kxb4 $11) 58... Kh5 {[%emt 0:00:11]} 59. Kf7 {[%emt 0:00:03]} Kxh4 {[%emt 0:00:05]} 60. Kxg7 {[%emt 0:00:03]} (60. Kg6 $5) 60... Kg5 {[%emt 0:00:04]} 61. Kf7 {[%emt 0:00:06]} Kf5 $1 {[%emt 0:00:07]} 62. Ke7 {[%emt 0:00:16]} Ke5 {[%emt 0:00:04]} 63. Kd7 {[%emt 0:00:15]} 1/2-1/2